[Event "*** Titled Tuesday Blitz"]
[Site "Chess.com"]
[Date "2020.11.10"]
[Round "7"]
[White "niki_2003"]
[Black "PawnEatingZombie"]
[Result "0-1"]
[WhiteElo "1960"]
[BlackElo "2169"]
[TimeControl "180+1"]
[EndTime "11:21:37 PST"]
[Termination "PawnEatingZombie won by checkmate"]

1. e4 {[%clk 0:03:00.9]} 1... c6 {[%clk 0:02:59.5]} 2. d4 {[%clk 0:02:58.9]}
2... d5 {[%clk 0:02:59.4]} 3. exd5 {[%clk 0:02:58.3]} 3... cxd5 {[%clk
0:02:59.4]} 4. c3 {[%clk 0:02:58.1]} 4... Nc6 {[%clk 0:02:58.9]} 5. Bd3 {[%clk
0:02:57.8]} 5... Qc7 {[%clk 0:02:58.8]} 6. Nf3 {[%clk 0:02:55.7]} 6... Bg4
{[%clk 0:02:58.5]} 7. O-O {[%clk 0:02:52.6]} 7... e6 {[%clk 0:02:58.7]} 8. Be3
{[%clk 0:02:51.8]} 8... Nf6 {[%clk 0:02:57.4]} 9. Nbd2 {[%clk 0:02:51]} 9... Bd6
{[%clk 0:02:56.4]} 10. h3 {[%clk 0:02:49.6]} 10... Bh5 {[%clk 0:02:55.9]} 11.
Qc2 {[%clk 0:02:40.9]} 11... O-O {[%clk 0:02:45.7]} 12. Bg5 {[%clk 0:02:35.1]}
12... Bg6 {[%clk 0:02:45.1]} 13. Bxf6 {[%clk 0:02:26.8]} 13... gxf6 {[%clk
0:02:39.5]} 14. a3 {[%clk 0:02:23.3]} 14... Rac8 {[%clk 0:02:37.3]} 15. Rac1
{[%clk 0:02:21]} 15... e5 {[%clk 0:02:35.9]} 16. Bf5 {[%clk 0:02:12.1]} 16...
Nxd4 {[%clk 0:02:11.7]} 17. Nxd4 {[%clk 0:01:28]} 17... exd4 {[%clk 0:02:09.1]}
18. Bxg6 {[%clk 0:01:12.3]} 18... hxg6 {[%clk 0:02:07.1]} 19. Qb3 {[%clk
0:01:10.7]} 19... Bf4 {[%clk 0:01:54.4]} 20. cxd4 {[%clk 0:01:02]} 20... Qxc1
{[%clk 0:01:52.9]} 21. Rxc1 {[%clk 0:01:01]} 21... Rxc1+ {[%clk 0:01:53.8]} 22.
Nf1 {[%clk 0:01:00.3]} 22... Re8 {[%clk 0:01:50.3]} 23. g3 {[%clk 0:00:54.1]}
23... Bh6 {[%clk 0:01:29.5]} 24. Kg2 {[%clk 0:00:51.8]} 24... Re2 {[%clk
0:01:21.6]} 25. Nh2 {[%clk 0:00:30.9]} 25... f5 {[%clk 0:01:12.2]} 26. Qxd5
{[%clk 0:00:18.5]} 26... Rcc2 {[%clk 0:01:10.4]} 27. Qd8+ {[%clk 0:00:18.2]}
27... Kg7 {[%clk 0:01:07.7]} 28. g4 {[%clk 0:00:13.1]} 28... Rxf2+ {[%clk
0:01:06.6]} 29. Kg3 {[%clk 0:00:12.9]} 29... Bf4+ {[%clk 0:00:57.6]} 30. Kh4
{[%clk 0:00:11.5]} 30... Rxh2 {[%clk 0:00:56]} 31. Qd7 {[%clk 0:00:04.2]} 31...
Rxh3+ {[%clk 0:00:46.4]} 32. Kxh3 {[%clk 0:00:00.9]} 32... Rh2# {[%clk
0:00:47.3]} 0-1

[Event "*** Titled Tuesday Blitz"]
[Site "Chess.com"]
[Date "2020.11.10"]
[Round "7"]
[White "Onischuk_V"]
[Black "MokshanovAlexey"]
[Result "1-0"]
[WhiteElo "2860"]
[BlackElo "2615"]
[TimeControl "180+1"]
[EndTime "11:21:40 PST"]
[Termination "Onischuk_V won on time"]

1. e4 {[%clk 0:02:57.6]} 1... e6 {[%clk 0:03:00.1]} 2. d4 {[%clk 0:02:57.3]}
2... d5 {[%clk 0:03:00.3]} 3. Bd3 {[%clk 0:02:58]} 3... Nf6 {[%clk 0:03:00.2]}
4. e5 {[%clk 0:02:57.6]} 4... Nfd7 {[%clk 0:03:00.2]} 5. f4 {[%clk 0:02:51.5]}
5... c5 {[%clk 0:03:00.2]} 6. c3 {[%clk 0:02:50.5]} 6... Nc6 {[%clk 0:03:00.5]}
7. Nf3 {[%clk 0:02:49.9]} 7... Qb6 {[%clk 0:02:53.8]} 8. Be2 {[%clk 0:02:49.1]}
8... f6 {[%clk 0:02:40]} 9. a3 {[%clk 0:02:45.5]} 9... Be7 {[%clk 0:02:26.3]}
10. b4 {[%clk 0:02:45]} 10... cxd4 {[%clk 0:02:26.1]} 11. cxd4 {[%clk
0:02:44.8]} 11... O-O {[%clk 0:02:20.4]} 12. Bb2 {[%clk 0:02:34.1]} 12... g5
{[%clk 0:02:14.8]} 13. exf6 {[%clk 0:02:29]} 13... Nxf6 {[%clk 0:02:10.3]} 14.
Nxg5 {[%clk 0:02:28.6]} 14... h6 {[%clk 0:02:06.4]} 15. Nf3 {[%clk 0:02:28.7]}
15... Ne4 {[%clk 0:02:06.6]} 16. Nbd2 {[%clk 0:02:08.1]} 16... Rxf4 {[%clk
0:02:00.7]} 17. O-O {[%clk 0:02:03.8]} 17... Bd7 {[%clk 0:01:48.9]} 18. Nb3
{[%clk 0:01:57.9]} 18... Raf8 {[%clk 0:01:45.5]} 19. Rb1 {[%clk 0:01:47.2]}
19... Qd8 {[%clk 0:01:12.1]} 20. Nc5 {[%clk 0:01:42.8]} 20... b6 {[%clk
0:00:59]} 21. Nxd7 {[%clk 0:01:36.3]} 21... Qxd7 {[%clk 0:00:59]} 22. Bb5 {[%clk
0:01:36.6]} 22... Qd6 {[%clk 0:00:56.1]} 23. Rc1 {[%clk 0:01:31.3]} 23... Nd8
{[%clk 0:00:46.6]} 24. Ne5 {[%clk 0:01:24.5]} 24... Rxf1+ {[%clk 0:00:46.1]} 25.
Bxf1 {[%clk 0:01:24]} 25... Bg5 {[%clk 0:00:44]} 26. Qg4 {[%clk 0:01:07]} 26...
Rf4 {[%clk 0:00:37.4]} 27. Qh5 {[%clk 0:01:05.2]} 27... Rf6 {[%clk 0:00:20.8]}
28. Re1 {[%clk 0:00:57.4]} 28... Qf8 {[%clk 0:00:19.5]} 29. Bd3 {[%clk
0:00:53.2]} 29... Bd2 {[%clk 0:00:19.6]} 30. Qg4+ {[%clk 0:00:45.3]} 30... Kh8
{[%clk 0:00:19.8]} 31. Rxe4 {[%clk 0:00:45.1]} 31... dxe4 {[%clk 0:00:18.7]} 32.
Qxe4 {[%clk 0:00:45.6]} 32... Rf5 {[%clk 0:00:09.7]} 33. Ng6+ {[%clk 0:00:42.7]}
1-0

[Event "*** Titled Tuesday Blitz"]
[Site "Chess.com"]
[Date "2020.11.10"]
[Round "7"]
[White "Bigfish1995"]
[Black "Rud_Makarian"]
[Result "1-0"]
[WhiteElo "2977"]
[BlackElo "2818"]
[TimeControl "180+1"]
[EndTime "11:21:41 PST"]
[Termination "Bigfish1995 won by resignation"]

1. e4 {[%clk 0:03:00.9]} 1... e5 {[%clk 0:02:57.6]} 2. Nf3 {[%clk 0:03:00.8]}
2... Nc6 {[%clk 0:02:57.4]} 3. Bb5 {[%clk 0:03:00.1]} 3... Nf6 {[%clk
0:02:57.7]} 4. d3 {[%clk 0:02:58.5]} 4... Bc5 {[%clk 0:02:57]} 5. c3 {[%clk
0:02:58.4]} 5... O-O {[%clk 0:02:54.7]} 6. O-O {[%clk 0:02:58.3]} 6... d6 {[%clk
0:02:54.9]} 7. Bg5 {[%clk 0:02:56.9]} 7... Bb6 {[%clk 0:02:45.5]} 8. Nbd2 {[%clk
0:02:55.7]} 8... h6 {[%clk 0:02:44.9]} 9. Bh4 {[%clk 0:02:55.2]} 9... g5 {[%clk
0:02:43.2]} 10. Bg3 {[%clk 0:02:55]} 10... Ne7 {[%clk 0:02:41.7]} 11. d4 {[%clk
0:02:53]} 11... exd4 {[%clk 0:01:53.6]} 12. Nxd4 {[%clk 0:02:52.6]} 12... Ng6
{[%clk 0:01:51.1]} 13. Kh1 {[%clk 0:02:41.8]} 13... Bd7 {[%clk 0:01:44.1]} 14.
Bd3 {[%clk 0:02:39.1]} 14... Re8 {[%clk 0:01:42.3]} 15. f4 {[%clk 0:02:37.5]}
15... Bg4 {[%clk 0:01:31.6]} 16. Qc2 {[%clk 0:02:35.3]} 16... gxf4 {[%clk
0:01:15.8]} 17. Bxf4 {[%clk 0:02:34]} 17... Nh5 {[%clk 0:01:16]} 18. Be3 {[%clk
0:02:32.4]} 18... Qh4 {[%clk 0:01:11.8]} 19. Bf2 {[%clk 0:02:27.1]} 19... Qd8
{[%clk 0:00:58.1]} 20. Nc4 {[%clk 0:02:25.7]} 20... Qg5 {[%clk 0:00:33]} 21. Be3
{[%clk 0:02:17]} 21... Qh4 {[%clk 0:00:30.2]} 22. Kg1 {[%clk 0:02:17]} 22... Ne5
{[%clk 0:00:20.3]} 23. Rae1 {[%clk 0:01:57.2]} 23... Re7 {[%clk 0:00:14.7]} 24.
Nxe5 {[%clk 0:01:12.7]} 24... Rxe5 {[%clk 0:00:13.6]} 25. Bc4 {[%clk 0:01:08.3]}
25... Re7 {[%clk 0:00:11.5]} 26. Rf2 {[%clk 0:00:57.8]} 26... Rf8 {[%clk
0:00:08.7]} 27. g3 {[%clk 0:00:57.5]} 27... Nxg3 {[%clk 0:00:03.2]} 28. hxg3
{[%clk 0:00:52.3]} 28... Qh5 {[%clk 0:00:02.5]} 29. Rh2 {[%clk 0:00:45.3]} 29...
Qg6 {[%clk 0:00:02.2]} 30. Rxh6 {[%clk 0:00:45.2]} 30... Qxe4 {[%clk 0:00:02.8]}
31. Qh2 {[%clk 0:00:32.9]} 1-0

[Event "*** Titled Tuesday Blitz"]
[Site "Chess.com"]
[Date "2020.11.10"]
[Round "7"]
[White "Gerodot71"]
[Black "VladimirBugayev"]
[Result "1-0"]
[WhiteElo "2485"]
[BlackElo "2256"]
[TimeControl "180+1"]
[EndTime "11:21:42 PST"]
[Termination "Gerodot71 won on time"]

1. d4 {[%clk 0:03:00.9]} 1... Nf6 {[%clk 0:02:59]} 2. c4 {[%clk 0:03:00.1]} 2...
c5 {[%clk 0:02:59]} 3. d5 {[%clk 0:03:00.3]} 3... b5 {[%clk 0:02:58.8]} 4. cxb5
{[%clk 0:03:01.2]} 4... a6 {[%clk 0:02:59.3]} 5. b6 {[%clk 0:03:01.6]} 5... d6
{[%clk 0:02:58.2]} 6. Nc3 {[%clk 0:03:00.3]} 6... Nbd7 {[%clk 0:02:56.1]} 7. e4
{[%clk 0:02:59.4]} 7... g6 {[%clk 0:02:54.2]} 8. h3 {[%clk 0:02:59.7]} 8... Bg7
{[%clk 0:02:54.1]} 9. Nf3 {[%clk 0:03:00.1]} 9... O-O {[%clk 0:02:53.9]} 10. a4
{[%clk 0:02:57.6]} 10... a5 {[%clk 0:02:51.4]} 11. Be2 {[%clk 0:02:55.8]} 11...
Qxb6 {[%clk 0:02:47.8]} 12. O-O {[%clk 0:02:54.3]} 12... Ba6 {[%clk 0:02:38.5]}
13. Nd2 {[%clk 0:02:53.4]} 13... Qb4 {[%clk 0:02:24.7]} 14. Bb5 {[%clk
0:02:31.9]} 14... Ne5 {[%clk 0:02:13.9]} 15. Qe2 {[%clk 0:02:22.5]} 15... Bxb5
{[%clk 0:02:02.3]} 16. axb5 {[%clk 0:02:23.4]} 16... a4 {[%clk 0:01:53.4]} 17.
f4 {[%clk 0:02:14.1]} 17... Qd4+ {[%clk 0:01:46.6]} 18. Kh2 {[%clk 0:02:10.2]}
18... Nd3 {[%clk 0:01:46.2]} 19. Nf3 {[%clk 0:01:58.3]} 19... Nxc1 {[%clk
0:01:45.7]} 20. Rfxc1 {[%clk 0:01:59.2]} 20... Qb4 {[%clk 0:01:42.5]} 21. Qc2
{[%clk 0:01:55]} 21... Nh5 {[%clk 0:01:15.6]} 22. g3 {[%clk 0:01:37.8]} 22... a3
{[%clk 0:01:14]} 23. bxa3 {[%clk 0:01:28]} 23... Rxa3 {[%clk 0:01:13.7]} 24.
Rxa3 {[%clk 0:01:26]} 24... Qxa3 {[%clk 0:01:14]} 25. Nd2 {[%clk 0:01:26.6]}
25... Rb8 {[%clk 0:00:58.9]} 26. Ndb1 {[%clk 0:01:20.8]} 26... Qb4 {[%clk
0:00:55.7]} 27. h4 {[%clk 0:01:13.4]} 27... Bd4 {[%clk 0:00:42.6]} 28. Kg2
{[%clk 0:01:04.5]} 28... Ra8 {[%clk 0:00:32.6]} 29. Kh3 {[%clk 0:00:53.2]} 29...
Ra1 {[%clk 0:00:27.8]} 30. Ne2 {[%clk 0:00:46.6]} 30... Be3 {[%clk 0:00:13.1]}
31. Rd1 {[%clk 0:00:41.7]} 1-0

[Event "*** Titled Tuesday Blitz"]
[Site "Chess.com"]
[Date "2020.11.10"]
[Round "7"]
[White "novocane"]
[Black "Gulkov_Igor"]
[Result "1/2-1/2"]
[WhiteElo "2288"]
[BlackElo "2444"]
[TimeControl "180+1"]
[EndTime "11:21:42 PST"]
[Termination "Game drawn by agreement"]

1. d4 {[%clk 0:02:59.8]} 1... Nf6 {[%clk 0:02:59.3]} 2. c4 {[%clk 0:03:00]} 2...
g6 {[%clk 0:02:57.9]} 3. Nc3 {[%clk 0:03:00]} 3... Bg7 {[%clk 0:02:58.1]} 4. e4
{[%clk 0:03:00.3]} 4... d6 {[%clk 0:02:58.1]} 5. f3 {[%clk 0:03:00.9]} 5... O-O
{[%clk 0:02:57.8]} 6. Bg5 {[%clk 0:03:01.6]} 6... c5 {[%clk 0:02:57]} 7. d5
{[%clk 0:03:01.7]} 7... e6 {[%clk 0:02:56.7]} 8. Qd2 {[%clk 0:03:01.9]} 8... h6
{[%clk 0:02:56.4]} 9. Be3 {[%clk 0:02:56.5]} 9... exd5 {[%clk 0:02:55.5]} 10.
cxd5 {[%clk 0:02:56.7]} 10... h5 {[%clk 0:02:55.3]} 11. Bh6 {[%clk 0:02:42.7]}
11... Nbd7 {[%clk 0:02:50.8]} 12. Bxg7 {[%clk 0:02:38.9]} 12... Kxg7 {[%clk
0:02:50.3]} 13. Nh3 {[%clk 0:02:39.4]} 13... Re8 {[%clk 0:02:46.7]} 14. Be2
{[%clk 0:02:39.3]} 14... a6 {[%clk 0:02:39.4]} 15. a4 {[%clk 0:02:39.2]} 15...
Rb8 {[%clk 0:02:38.2]} 16. O-O {[%clk 0:02:37.8]} 16... Qa5 {[%clk 0:02:36.5]}
17. Nf2 {[%clk 0:02:29.5]} 17... Qc7 {[%clk 0:02:15.5]} 18. f4 {[%clk
0:02:26.2]} 18... c4 {[%clk 0:02:04.9]} 19. e5 {[%clk 0:02:00.2]} 19... dxe5
{[%clk 0:02:03.2]} 20. f5 {[%clk 0:02:00.4]} 20... Nc5 {[%clk 0:01:38.6]} 21.
fxg6 {[%clk 0:01:36.6]} 21... fxg6 {[%clk 0:01:37.7]} 22. Bxc4 {[%clk
0:01:33.8]} 22... e4 {[%clk 0:01:33.5]} 23. d6 {[%clk 0:01:26.4]} 23... Qb6
{[%clk 0:01:32.3]} 24. Qg5 {[%clk 0:00:59.2]} 24... Qxd6 {[%clk 0:01:28.8]} 25.
Rad1 {[%clk 0:00:55]} 25... Qe5 {[%clk 0:01:27.9]} 26. Qe3 {[%clk 0:00:27.1]}
26... Bf5 {[%clk 0:01:24.9]} 27. Nd5 {[%clk 0:00:26.1]} 27... Nd3 {[%clk
0:01:13.7]} 28. Nxd3 {[%clk 0:00:18.8]} 28... exd3 {[%clk 0:01:13.2]} 29. Qxe5
{[%clk 0:00:18.2]} 29... Rxe5 {[%clk 0:01:12.5]} 30. Nxf6 {[%clk 0:00:18.7]}
30... Kxf6 {[%clk 0:01:12]} 31. Bxd3 {[%clk 0:00:18.9]} 31... Rd8 {[%clk
0:01:10.3]} 32. Bxf5 {[%clk 0:00:19]} 32... Rxd1 {[%clk 0:01:05.1]} 33. Rxd1
{[%clk 0:00:19.2]} 33... Kxf5 {[%clk 0:00:58.5]} 34. Rd7 {[%clk 0:00:15.2]}
34... Re4 {[%clk 0:00:58.3]} 35. Rxb7 {[%clk 0:00:11.5]} 35... Rxa4 {[%clk
0:00:57.9]} 36. b4 {[%clk 0:00:11.4]} 36... Ra2 {[%clk 0:00:57.1]} 37. Rb6
{[%clk 0:00:08.9]} 37... Rb2 {[%clk 0:00:54.8]} 38. Rxa6 {[%clk 0:00:08.4]}
38... Rxb4 {[%clk 0:00:54.7]} 39. Ra3 {[%clk 0:00:08.3]} 1/2-1/2

[Event "*** Titled Tuesday Blitz"]
[Site "Chess.com"]
[Date "2020.11.10"]
[Round "7"]
[White "Andreikka"]
[Black "suyu28"]
[Result "1-0"]
[WhiteElo "2950"]
[BlackElo "2632"]
[TimeControl "180+1"]
[EndTime "11:21:43 PST"]
[Termination "Andreikka won by resignation"]

1. g3 {[%clk 0:02:28.9]} 1... d5 {[%clk 0:02:56.9]} 2. Nf3 {[%clk 0:02:22.9]}
2... c6 {[%clk 0:02:52.1]} 3. Bg2 {[%clk 0:02:22.6]} 3... Nf6 {[%clk 0:02:47.9]}
4. O-O {[%clk 0:02:23.5]} 4... g6 {[%clk 0:02:47.9]} 5. d3 {[%clk 0:02:24.4]}
5... Bg7 {[%clk 0:02:47.5]} 6. Nbd2 {[%clk 0:02:25.3]} 6... O-O {[%clk
0:02:46.8]} 7. e4 {[%clk 0:02:26.2]} 7... Bg4 {[%clk 0:02:38.5]} 8. Qe1 {[%clk
0:02:26]} 8... Re8 {[%clk 0:02:27.6]} 9. e5 {[%clk 0:02:20.9]} 9... Nfd7 {[%clk
0:02:27.7]} 10. h3 {[%clk 0:02:21.2]} 10... Bxf3 {[%clk 0:02:27.4]} 11. Nxf3
{[%clk 0:02:22.1]} 11... e6 {[%clk 0:02:27.9]} 12. d4 {[%clk 0:02:22.7]} 12...
c5 {[%clk 0:02:27.9]} 13. c3 {[%clk 0:02:23.5]} 13... Nc6 {[%clk 0:02:28.3]} 14.
Qe2 {[%clk 0:02:23.5]} 14... f6 {[%clk 0:02:19.9]} 15. exf6 {[%clk 0:02:21.8]}
15... Qxf6 {[%clk 0:02:20.8]} 16. Bg5 {[%clk 0:02:20.4]} 16... Qf5 {[%clk
0:02:12.7]} 17. Be3 {[%clk 0:02:20]} 17... cxd4 {[%clk 0:01:52.9]} 18. cxd4
{[%clk 0:02:19.3]} 18... e5 {[%clk 0:01:45.7]} 19. dxe5 {[%clk 0:02:12.8]} 19...
Ndxe5 {[%clk 0:01:45.5]} 20. Rad1 {[%clk 0:01:57.6]} 20... Nxf3+ {[%clk
0:01:39.6]} 21. Qxf3 {[%clk 0:01:52.3]} 21... Qxf3 {[%clk 0:00:50.6]} 22. Bxf3
{[%clk 0:01:53.2]} 22... d4 {[%clk 0:00:51]} 23. Bg5 {[%clk 0:01:43.8]} 23... h6
{[%clk 0:00:47.4]} 24. Bd2 {[%clk 0:01:40.7]} 24... Rad8 {[%clk 0:00:47.3]} 25.
Rfe1 {[%clk 0:01:37.1]} 25... Kf7 {[%clk 0:00:46.9]} 26. Kf1 {[%clk 0:01:35]}
26... d3 {[%clk 0:00:44.3]} 27. Rxe8 {[%clk 0:01:34.4]} 27... Kxe8 {[%clk
0:00:44.2]} 28. b3 {[%clk 0:01:35.1]} 28... Kf7 {[%clk 0:00:42.8]} 29. Be4
{[%clk 0:01:32.6]} 29... Rd4 {[%clk 0:00:39.8]} 30. f3 {[%clk 0:01:32.5]} 30...
Rd7 {[%clk 0:00:39.4]} 31. Be3 {[%clk 0:01:31.3]} 31... Nb4 {[%clk 0:00:38.6]}
32. a3 {[%clk 0:01:27.9]} 32... Nc2 {[%clk 0:00:38.9]} 33. Bc1 {[%clk
0:01:28.5]} 33... d2 {[%clk 0:00:33.2]} 34. Rxd2 {[%clk 0:01:28.6]} 34... Rxd2
{[%clk 0:00:32.4]} 35. Bxd2 {[%clk 0:01:29.5]} 35... Nxa3 {[%clk 0:00:33.1]} 36.
Bxb7 {[%clk 0:01:29.8]} 36... Nb5 {[%clk 0:00:33.4]} 37. Bd5+ {[%clk 0:01:27.6]}
37... Ke7 {[%clk 0:00:33.1]} 38. f4 {[%clk 0:01:28.3]} 38... Nd4 {[%clk
0:00:32.6]} 39. Kf2 {[%clk 0:01:23.4]} 39... Bf6 {[%clk 0:00:32.4]} 40. Ke3
{[%clk 0:01:20.2]} 40... Nf5+ {[%clk 0:00:27.5]} 41. Kf3 {[%clk 0:01:20.5]}
41... Kd6 {[%clk 0:00:27.8]} 42. Bf7 {[%clk 0:01:19.2]} 42... g5 {[%clk
0:00:26.3]} 43. Kg4 {[%clk 0:01:15.3]} 43... Ke7 {[%clk 0:00:07.8]} 44. Kxf5
{[%clk 0:01:13.7]} 44... Kxf7 {[%clk 0:00:07.1]} 45. fxg5 {[%clk 0:01:14.6]}
45... hxg5 {[%clk 0:00:05.9]} 46. Bxg5 {[%clk 0:01:15.5]} 46... Bd4 {[%clk
0:00:06.1]} 47. g4 {[%clk 0:01:16.1]} 47... a5 {[%clk 0:00:05.8]} 48. Bd2 {[%clk
0:01:16.3]} 48... Bb6 {[%clk 0:00:05.6]} 49. h4 {[%clk 0:01:16.8]} 1-0

[Event "*** Titled Tuesday Blitz"]
[Site "Chess.com"]
[Date "2020.11.10"]
[Round "7"]
[White "Pertinhez76"]
[Black "IsuruAlahakoon"]
[Result "0-1"]
[WhiteElo "2126"]
[BlackElo "2477"]
[TimeControl "180+1"]
[EndTime "11:21:45 PST"]
[Termination "IsuruAlahakoon won on time"]

1. d4 {[%clk 0:03:00.9]} 1... d5 {[%clk 0:02:59.3]} 2. Nf3 {[%clk 0:02:59.4]}
2... Bf5 {[%clk 0:02:58.5]} 3. Bf4 {[%clk 0:02:57.9]} 3... Nc6 {[%clk
0:02:57.2]} 4. e3 {[%clk 0:02:56.7]} 4... e6 {[%clk 0:02:56.9]} 5. Nbd2 {[%clk
0:02:54.9]} 5... Bd6 {[%clk 0:02:54.3]} 6. a3 {[%clk 0:02:51.2]} 6... Bxf4
{[%clk 0:02:53.2]} 7. exf4 {[%clk 0:02:51.9]} 7... Nf6 {[%clk 0:02:51.7]} 8. c3
{[%clk 0:02:45]} 8... O-O {[%clk 0:02:50.7]} 9. Ne5 {[%clk 0:02:43.4]} 9... Nd7
{[%clk 0:02:39.1]} 10. Ndf3 {[%clk 0:02:39.1]} 10... f6 {[%clk 0:02:36.9]} 11.
Nxc6 {[%clk 0:02:34.7]} 11... bxc6 {[%clk 0:02:37.8]} 12. Bd3 {[%clk 0:02:33.9]}
12... Be4 {[%clk 0:02:26.6]} 13. O-O {[%clk 0:02:32.7]} 13... c5 {[%clk
0:02:21.4]} 14. Re1 {[%clk 0:02:31.9]} 14... Bxd3 {[%clk 0:02:16]} 15. Qxd3
{[%clk 0:02:31.3]} 15... c4 {[%clk 0:02:16.1]} 16. Qe2 {[%clk 0:02:27.7]} 16...
Re8 {[%clk 0:02:15.6]} 17. f5 {[%clk 0:02:21.5]} 17... exf5 {[%clk 0:02:11.6]}
18. Qc2 {[%clk 0:02:15.8]} 18... Re4 {[%clk 0:02:08.6]} 19. g3 {[%clk
0:02:13.2]} 19... Qe7 {[%clk 0:02:06.7]} 20. Kf1 {[%clk 0:02:13.4]} 20... Re8
{[%clk 0:02:05.6]} 21. a4 {[%clk 0:01:36.6]} 21... a5 {[%clk 0:02:02]} 22. b3
{[%clk 0:01:33.9]} 22... Nb6 {[%clk 0:01:55.1]} 23. Qd1 {[%clk 0:01:21.4]} 23...
Rxe1+ {[%clk 0:01:46.2]} 24. Nxe1 {[%clk 0:01:19.5]} 24... cxb3 {[%clk
0:01:44.6]} 25. Qxb3 {[%clk 0:01:17.6]} 25... Nc4 {[%clk 0:01:43.2]} 26. Nf3
{[%clk 0:01:08.6]} 26... Qe2+ {[%clk 0:01:40]} 27. Kg2 {[%clk 0:01:08.4]} 27...
Qxf3+ {[%clk 0:01:39.4]} 28. Kxf3 {[%clk 0:01:07.4]} 28... Nd2+ {[%clk
0:01:39.3]} 29. Kf4 {[%clk 0:01:08]} 29... Nxb3 {[%clk 0:01:37.9]} 30. Rb1
{[%clk 0:01:00.5]} 30... Rb8 {[%clk 0:01:34.6]} 31. Kxf5 {[%clk 0:00:59.2]}
31... Nxd4+ {[%clk 0:01:32.3]} 32. cxd4 {[%clk 0:00:57.9]} 32... Rxb1 {[%clk
0:01:32.1]} 33. Ke6 {[%clk 0:00:58.3]} 33... Rb4 {[%clk 0:01:24.9]} 34. Kxd5
{[%clk 0:00:58.1]} 34... Rxa4 {[%clk 0:01:24.8]} 35. f4 {[%clk 0:00:57.6]} 35...
Rb4 {[%clk 0:01:24.6]} 36. f5 {[%clk 0:00:57.9]} 36... a4 {[%clk 0:01:24]} 37.
Kc5 {[%clk 0:00:58.8]} 37... Rb1 {[%clk 0:01:22.7]} 38. d5 {[%clk 0:00:59.4]}
38... a3 {[%clk 0:01:22.4]} 39. Kc6 {[%clk 0:00:59.6]} 39... Rb2 {[%clk
0:01:21.8]} 40. Kxc7 {[%clk 0:00:59.8]} 40... a2 {[%clk 0:01:21.1]} 41. d6
{[%clk 0:01:00.1]} 41... a1=Q {[%clk 0:01:17.5]} 42. d7 {[%clk 0:00:57.8]} 42...
Qa7+ {[%clk 0:01:16.7]} 43. Kd8 {[%clk 0:00:57.6]} 43... Rb8+ {[%clk 0:01:14.6]}
44. Ke7 {[%clk 0:00:57.7]} 44... Rb7 {[%clk 0:01:14.5]} 0-1

[Event "*** Titled Tuesday Blitz"]
[Site "Chess.com"]
[Date "2020.11.10"]
[Round "7"]
[White "eCztery"]
[Black "Gusarov91"]
[Result "0-1"]
[WhiteElo "2313"]
[BlackElo "2638"]
[TimeControl "180+1"]
[EndTime "11:21:47 PST"]
[Termination "Gusarov91 won by resignation"]

1. e4 {[%clk 0:03:00.9]} 1... c6 {[%clk 0:02:58.7]} 2. Nc3 {[%clk 0:02:59.4]}
2... d5 {[%clk 0:02:58.6]} 3. Nf3 {[%clk 0:02:59.2]} 3... Bg4 {[%clk 0:02:58]}
4. h3 {[%clk 0:02:56.7]} 4... Bxf3 {[%clk 0:02:57.8]} 5. Qxf3 {[%clk 0:02:57.6]}
5... e6 {[%clk 0:02:58.4]} 6. d3 {[%clk 0:02:51.6]} 6... Nd7 {[%clk 0:02:57.9]}
7. Qg3 {[%clk 0:02:51]} 7... Qa5 {[%clk 0:02:52.3]} 8. Bd2 {[%clk 0:02:46.5]}
8... Qb6 {[%clk 0:02:40.9]} 9. O-O-O {[%clk 0:02:44.6]} 9... Ngf6 {[%clk
0:02:41]} 10. f4 {[%clk 0:02:30.9]} 10... Bb4 {[%clk 0:02:30.6]} 11. e5 {[%clk
0:02:21.9]} 11... Nh5 {[%clk 0:02:29.2]} 12. Qh4 {[%clk 0:02:12.7]} 12... g6
{[%clk 0:02:27.5]} 13. g4 {[%clk 0:02:00.3]} 13... Bxc3 {[%clk 0:02:19.3]} 14.
Bxc3 {[%clk 0:01:59]} 14... Nxf4 {[%clk 0:02:16.1]} 15. Kb1 {[%clk 0:01:46.1]}
15... d4 {[%clk 0:02:14]} 16. Bd2 {[%clk 0:01:39]} 16... Nd5 {[%clk 0:02:14.1]}
17. Ka1 {[%clk 0:01:25]} 17... Nxe5 {[%clk 0:02:11.6]} 18. Bg2 {[%clk
0:01:21.9]} 18... Nd7 {[%clk 0:01:52.8]} 19. Bxd5 {[%clk 0:01:06.8]} 19... cxd5
{[%clk 0:01:52.4]} 20. Rhf1 {[%clk 0:01:00.7]} 20... Rc8 {[%clk 0:01:50.7]} 21.
Qf2 {[%clk 0:00:55.7]} 21... f6 {[%clk 0:01:43.8]} 22. g5 {[%clk 0:00:47.8]}
22... Rxc2 {[%clk 0:01:41.4]} 23. Rb1 {[%clk 0:00:42.8]} 23... Nc5 {[%clk
0:01:37.2]} 24. b3 {[%clk 0:00:11.6]} 24... Rxa2+ {[%clk 0:01:25.2]} 25. Kxa2
{[%clk 0:00:11.3]} 25... Qa6+ {[%clk 0:01:25.7]} 26. Kb2 {[%clk 0:00:07.9]}
26... Nxd3+ {[%clk 0:01:25.9]} 27. Kc2 {[%clk 0:00:06.7]} 27... Nxf2 {[%clk
0:01:25.7]} 28. Rxf2 {[%clk 0:00:07.3]} 28... f5 {[%clk 0:01:19.6]} 29. Kb2
{[%clk 0:00:06.6]} 29... O-O {[%clk 0:01:17.2]} 30. Re1 {[%clk 0:00:05.2]} 30...
Rc8 {[%clk 0:01:16.1]} 31. Rfe2 {[%clk 0:00:04.6]} 31... Qd3 {[%clk 0:01:16.1]}
32. Bc1 {[%clk 0:00:04.2]} 32... Qc3+ {[%clk 0:01:13.7]} 33. Ka2 {[%clk
0:00:04.7]} 33... d3 {[%clk 0:01:11.6]} 34. Rxe6 {[%clk 0:00:03.9]} 34... Qa5+
{[%clk 0:01:05.2]} 35. Kb1 {[%clk 0:00:02.8]} 35... d2 {[%clk 0:01:04.9]} 36.
Bxd2 {[%clk 0:00:01.6]} 36... Qxd2 {[%clk 0:01:04.8]} 37. R6e2 {[%clk
0:00:01.9]} 37... Rc1+ {[%clk 0:01:03.4]} 38. Rxc1 {[%clk 0:00:01.7]} 38... Qxe2
{[%clk 0:01:03.9]} 39. Rc8+ {[%clk 0:00:02]} 39... Kf7 {[%clk 0:01:03.9]} 40.
Rc7+ {[%clk 0:00:02.9]} 40... Ke8 {[%clk 0:01:04.1]} 41. Rxb7 {[%clk 0:00:03.8]}
41... Qd3+ {[%clk 0:01:03.9]} 42. Kb2 {[%clk 0:00:03.8]} 42... f4 {[%clk
0:01:02.9]} 43. Rxa7 {[%clk 0:00:03.8]} 43... Qd4+ {[%clk 0:01:03.3]} 44. Kc2
{[%clk 0:00:03.6]} 44... Qxa7 {[%clk 0:01:03.4]} 0-1